fUSD/lending_fUSD_20240501
["ID","MTS","AMOUNT","RATE_DAILY","PERIOD"]
[325200851,1714576235149,-179.20149184,0.000129,2]
[325200853,1714576235159,-3204.29839268,0.000129,2]
[325200855,1714576235170,-168.32649071,0.00012986,2]
[325200857,1714576235179,-320.31063503,0.00012994,2]
[325200860,1714576235193,-157.62150676,0.00012994,2]
[325200861,1714576235207,-155.0,0.00012994,2]
[325200863,1714576235216,-170.45946283,0.00012994,2]
[325200865,1714576235225,-156.69124976,0.00012994,2]
[325200866,1714576235234,-781.01112167,0.00012994,2]
[325200867,1714576235244,-155.48306794,0.00012994,2]
[325200868,1714576235254,-266.38602155,0.00012994,2]
[325200869,1714576235263,-155.0,0.00012994,2]
[325200870,1714576235273,-647.64423879,0.00012994,7]
[325200871,1714576235283,-156.66302655,0.00012994,2]
[325200872,1714576235293,-306.87070392,0.00012994,2]
[325200873,1714576235303,-1352.26248503,0.00012994,2]
[325200874,1714576235312,-158.02576684,0.00012994,2]
[325200875,1714576235321,-156.40193167,0.00012994,2]
[325200876,1714576235331,-487.8595397,0.00012994,2]
[325200877,1714576235340,-157.93501554,0.00012994,2]
[325200878,1714576235349,-156.23632331,0.00012994,2]
[325200879,1714576235359,-357.46809625,0.00012994,2]
[325200880,1714576235368,-155.96028244,0.00012994,2]
[325200881,1714576235378,-308.80368967,0.00012995,2]
[325200882,1714576235388,-161.21528224,0.00012995,2]
[325200883,1714576235398,-155.40611098,0.00012995,2]
[325200884,1714576235408,-255.30991351,0.00012995,2]
[325200885,1714576235418,-15137.02771821,0.00012995,2]
[325200886,1714576235427,-86189.8279581,0.00012996,2]
[325200887,1714576235443,-2909.4072,0.00012996,2]
[325200888,1714576235455,-2974.95615782,0.00012996,2]
[325200906,1714576238180,-28143.71901766,0.00012996,2]
[325200907,1714576238193,-24820.94972394,0.00012996,2]
[325200908,1714576238206,-34682.69438928,0.00012996,2]
[325200909,1714576238221,-29549.44405987,0.00012996,2]
[325200910,1714576238290,-804.4421225,0.00012996,2]
[325200911,1714576238305,-1462665.10500345,0.00012996,2]
[325200912,1714576238315,-155.0,0.00012997,2]
[325200913,1714576238324,-92337.66308278,0.00012998,3]
[325200914,1714576238334,-10000.0,0.00012999,2]
[325200915,1714576238344,-5667.68371648,0.00012999,2]
[325200916,1714576238354,-2000.0,0.00012999,2]
[325200917,1714576238364,-1544399.82640403,0.00013,2]
[325200918,1714576238377,-499484.4497528,0.00013,2]
[325200924,1714576240161,-2035.93358251,0.00013,2]
[325200925,1714576240172,-636.41907387,0.00013,2]
[325200926,1714576240385,-359.38098,0.00013,2]
[325200927,1714576240397,-307703.21007067,0.00013,2]
[325200928,1714576240408,-5000.0,0.00013,2]
[325200929,1714576240419,-340.0090999,0.00013,2]
[325200930,1714576240430,-953.445,0.00013,2]
[325200931,1714576240594,-26046.24296875,0.00013,2]
[325200932,1714576240605,-5936.40546485,0.00013,2]
[325200933,1714576240616,-1448.95876364,0.00013,2]
[325200934,1714576240627,-4450.02275765,0.00013,2]
[325200935,1714576240638,-2930.325011,0.00013,2]
[325200936,1714576240834,-299.8197336,0.00013,2]
[325200937,1714576240846,-2119.16111,0.00013,2]
[325200943,1714576243170,-392.29490377,0.00013,2]
[325200945,1714576243181,-20049.00800003,0.00013,2]
[325200948,1714576243198,-1470.08217615,0.00013,2]
[325200953,1714576243386,-317369.07122262,0.00013,2]
[325200954,1714576243397,-3924.53627189,0.00013,2]
[325200955,1714576243408,-17715.34863852,0.00013,2]
[325200956,1714576243420,-357.69482547,0.00013,2]
[325200957,1714576243431,-348.04079335,0.00013,2]
[325200970,1714576246086,-415.24100588,0.00013,2]
[325200971,1714576246098,-10059.068,0.00013,2]
[325200972,1714576246294,-128457.93218175,0.00013,2]
[325200973,1714576246306,-573.65048,0.00013,2]
[325200974,1714576246318,-354.21,0.00013,2]
[325200975,1714576246329,-1972.29392483,0.00013,2]
[325200976,1714576246341,-256.638,0.00013,2]
[325200977,1714576246352,-929.9067113,0.00013,2]
[325200978,1714576246475,-30869.56297379,0.00013,2]
[325200979,1714576246487,-87741.84404578,0.00013,2]
[325200980,1714576246498,-9411.26014652,0.00013,2]
[325200982,1714576246509,-213733.50569938,0.00013,2]
[325200996,1714576894050,234.69981702,0.00010925,2]
[325200999,1714576944473,486.9255184,0.00010922,2]
[325201000,1714576950101,486.92551838,0.00010923,2]
[325201001,1714576954424,486.92551838,0.00010924,2]
[325201007,1714577192514,-155.0,0.00011018,2]
[325201008,1714577192572,-155.0,0.00011019,2]
[325201009,1714577192593,-155.0,0.00011019,2]
[325201010,1714577192616,-155.0,0.00011019,2]
[325201011,1714577192637,-155.0,0.00011019,2]
[325201012,1714577192658,-155.0,0.00011019,2]
[325201013,1714577192679,-155.0,0.00011019,2]
[325201014,1714577192702,-378.0976665,0.00011037,2]
[325201015,1714577192722,-166.09,0.0001206,2]
[325201016,1714577192744,-1263.00862369,0.0001206,2]
[325201024,1714577435522,-155.0,0.00011596,2]
[325201026,1714577435533,-1891.8,0.00011597,2]
[325201028,1714577435543,-151.45,0.00011598,2]
[325201029,1714577435553,-650.91,0.00012071,2]
[325201030,1714577435563,-6917.16,0.00012071,2]
[325201031,1714577435572,-200.0,0.00012107,2]
[325201032,1714577435586,-400.0,0.00012162,2]
[325201033,1714577435596,-1709.68,0.00012869,2]
[325201034,1714577435608,-12036.679998,0.00012869,2]
[325201035,1714577435620,-7525.91320361,0.00012869,2]
[325201036,1714577435630,-3000.0,0.0001287,2]
[325201037,1714577435640,-1176.3178,0.00012896,2]
[325201038,1714577435656,-184.38326201,0.00012898,2]
[325201039,1714577435668,-458.87,0.00012898,2]
[325201040,1714577435678,-9674.4689,0.00012899,2]
[325201041,1714577435689,-1853.6911,0.00012899,2]
[325201042,1714577435699,-1008.0156,0.00012899,2]
[325201043,1714577435709,-654.4285,0.00012899,2]
[325201044,1714577435720,-200.01599054,0.00012899,2]
[325201045,1714577435730,-169.07177894,0.00012899,2]
[325201046,1714577435740,-84503.52572774,0.00012899,2]
[325201047,1714577435750,-193.5376112,0.00012899,2]
[325201048,1714577435761,-612.39199713,0.00012899,2]
[325201049,1714577435771,-193.53761118,0.00012899,2]
[325201050,1714577435781,-193.53761118,0.000129,2]
[325201051,1714577435791,-612.39199713,0.000129,2]
[325201052,1714577435802,-193.53761118,0.000129,2]
[325201053,1714577435813,-10000.0,0.000129,2]
[325201054,1714577435823,-193.53761118,0.000129,2]
[325201055,1714577435833,-612.39199713,0.000129,2]
[325201056,1714577435843,-196.22365688,0.000129,2]
[325201057,1714577435855,-1000.0,0.00012994,2]
[325201058,1714577435865,-10000.0,0.00012995,2]
[325201059,1714577435876,-6253.53223726,0.00012995,2]
[325201060,1714577435886,-157.42562344,0.00012997,2]
[325201061,1714577435901,-325.81389395,0.00012997,2]
[325201062,1714577435911,-155.98560737,0.00012998,2]
[325201063,1714577435920,-317.01746459,0.00012998,2]
[325201064,1714577435931,-155.0,0.00012999,2]
[325201065,1714577435940,-3004.50780047,0.00012999,2]
[325201066,1714577435950,-935.8240957,0.00012999,2]
[325201067,1714577435960,-1248.82456618,0.00012999,2]
[325201068,1714577435970,-23636.27914405,0.00012999,2]
[325201069,1714577435983,-702.5238791,0.00012999,2]
[325201070,1714577435994,-568.685,0.00012999,2]
[325201071,1714577436006,-1712.57125797,0.00012999,2]
[325201073,1714577436059,-466.33962102,0.00012999,2]
[325201075,1714577436070,-2464.76794777,0.00012999,2]
[325201077,1714577436083,-994133.59800339,0.00012999,2]
[325201079,1714577436092,-2000.0,0.00012999,2]
[325201082,1714577436103,-275787.79300021,0.00013,2]
[325201084,1714577436113,-213.0,0.00013,2]
[325201085,1714577436122,-1748.77005859,0.00013,2]
[325201088,1714577436132,-1041126.18923974,0.00013,2]
[325201090,1714577436146,-5716.6,0.00013,2]
[325201092,1714577436157,-5696.56854,0.00013,2]
[325201094,1714577436168,-1656.56021945,0.00013,2]
[325201162,1714577438450,-207.41799716,0.00012899,2]
[325201163,1714577438461,-30079.22131767,0.00013,2]
[325201164,1714577438473,-400.0,0.00013,2]
[325201165,1714577438485,-900.0,0.00013,2]
[325201166,1714577438498,-18826.73068459,0.00013,2]
[325201167,1714577438674,-151655.64026135,0.00013,2]
[325201168,1714577438686,-404.64145571,0.00013,2]
[325201169,1714577438697,-616.38,0.00013,2]
[325201170,1714577438709,-270.41625618,0.00013,2]
[325201195,1714577439237,-499484.4497528,0.00013,2]
[325201296,1714577440446,-1122.51780687,0.00013,2]
[325201297,1714577440712,-415713.69499422,0.00013,2]
[325201298,1714577440724,-651.67241282,0.00013,2]
[325201299,1714577440735,-359.45574608,0.00013,2]
[325201300,1714577440746,-2418.41580001,0.00013,2]
[325201301,1714577440757,-2560.38325032,0.00013,2]
[325201302,1714577440768,-1125.94246707,0.00013,2]
[325201303,1714577440780,-991.10052887,0.00013,2]
[325201304,1714577440790,-3874.51167318,0.00013,2]
[325201305,1714577440801,-391.67582362,0.00013,2]
[325201306,1714577440974,-265.34402344,0.00013,2]
[325201307,1714577440985,-1076.36358481,0.00013,2]
[325201308,1714577440996,-39759.17955714,0.00013,2]
[325201335,1714577443767,-8167.50710492,0.00013,2]
[325201336,1714577443778,-943.296,0.00013,2]
[325201337,1714577443789,-298140.80180663,0.00013,2]
[325201339,1714577444941,-12260.56224255,0.00013,2]
[325201340,1714577444953,-44162.19599986,0.00013,2]
[325201341,1714577444964,-40405.05900852,0.00013,2]
[325201342,1714577444976,-222041.20224337,0.00013,2]
[325201343,1714577444987,-17922.63194019,0.00013,2]
[325201344,1714577444998,-15842.28837999,0.00013,2]
[325201345,1714577445010,-12640.00000012,0.00013,2]
[325201349,1714577446347,-18263.35539913,0.00013,2]
[325201350,1714577446532,-5906.3832012,0.00013,2]
[325201351,1714577446544,-11377.97955714,0.00013,2]
[325201352,1714577446557,-1422.2,0.00013,2]
[325201353,1714577446571,-56759.99999992,0.00013,2]
[325201354,1714577446583,-908.51,0.00013,2]
[325201355,1714577446595,-34324.27860915,0.00013,2]
[325201356,1714577446608,-2847.845,0.00013,2]
[325201357,1714577446620,-750.0,0.00013,2]
[325201358,1714577446754,-1603.98455791,0.00013,2]
[325201359,1714577446766,-1448.65,0.00013,2]
[325201360,1714577446778,-29462.19231212,0.00013,2]
[325201361,1714577446790,-118055.67752191,0.00013,2]
[325201362,1714577446802,-4328.499685,0.00013,2]
[325201363,1714577446813,-430.6215785,0.00013,2]
[325201388,1714577948836,300.0,0.00025,120]
[325201393,1714578344313,300.11331514,0.00025,120]
[325201447,1714578632508,-155.0,0.00011321,2]
[325201448,1714578632518,-305.57606544,0.00011322,2]
[325201449,1714578632528,-1076.0,0.00011324,2]
[325201450,1714578632537,-1000.0,0.00011734,2]
[325201451,1714578632547,-200.0,0.00011734,2]
[325201452,1714578632556,-4516.8,0.00011753,2]
[325201453,1714578632565,-4528.555916,0.00011842,2]
[325201454,1714578632574,-224.92,0.00011847,2]
[325201455,1714578632586,-188.19,0.00011902,2]
[325201456,1714578632597,-152.19,0.00011949,2]
[325201457,1714578632606,-1100.34009788,0.00012059,2]
[325201458,1714578632616,-288.51985909,0.0001206,2]
[325201459,1714578632627,-8000.0,0.0001206,2]
[325201460,1714578632637,-152.19,0.00012073,2]
[325201461,1714578632647,-200.0,0.00012097,2]
[325201462,1714578632656,-152.19,0.00012198,2]
[325201463,1714578632666,-152.19,0.00012322,2]
[325201464,1714578632676,-152.19,0.00012447,2]
[325201465,1714578632685,-152.19,0.00012571,2]
[325201466,1714578632696,-150.0,0.00012795,2]
[325201467,1714578632706,-150.0,0.00012817,2]
[325201468,1714578632716,-470.4090219,0.00012867,2]
[325201469,1714578632725,-251.74141407,0.00012867,2]
[325201471,1714578632735,-14380.17158262,0.00012868,2]
[325201472,1714578632744,-3000.0,0.0001287,2]
[325201473,1714578632753,-15926.63604302,0.00012893,2]
[325201477,1714578632817,-287.87646049,0.00012893,2]
[325201482,1714578632855,-4213.08724511,0.00012893,2]
[325201687,1714578638480,-155.0,0.0001132,2]
[325201688,1714578638489,-2280.23025138,0.00012893,2]
[325201689,1714578638499,-200.0,0.00012896,2]
[325201690,1714578638508,-952.0829,0.00012899,2]
[325201691,1714578638518,-77461.56525041,0.00012899,2]
[325201692,1714578638528,-171.69622301,0.000129,2]
[325201693,1714578638539,-2136.19892844,0.000129,2]
[325201694,1714578638548,-3432.50720619,0.0001298,2]
[325201695,1714578638557,-185.56957774,0.00012988,2]
[325201696,1714578638568,-3991.65165057,0.00012989,2]
[325201697,1714578638578,-250000.0,0.0001299,2]
[325201698,1714578638587,-1000.0,0.00012996,2]
[325201699,1714578638597,-185.94479018,0.00012997,2]
[325201700,1714578638607,-241.48315687,0.00012997,2]
[325201701,1714578638616,-192.81318554,0.00012997,2]
[325201702,1714578638626,-160.91122999,0.00012997,2]
[325201703,1714578638636,-155.16353772,0.00012997,2]
[325201704,1714578638644,-363.35615839,0.00012997,2]
[325201705,1714578638654,-3634.40571362,0.00012997,2]
[325201706,1714578638665,-155.39491573,0.00012997,2]
[325201707,1714578638674,-213.89673121,0.00012997,2]
[325201708,1714578638686,-302.83054698,0.00012997,2]
[325201709,1714578638697,-236.8238938,0.00012997,2]
[325201710,1714578638706,-255.50946214,0.00012997,2]
[325201711,1714578638715,-157.34694959,0.00012997,2]
[325201712,1714578638724,-155.0,0.00012997,2]
[325201713,1714578638734,-781.35828446,0.00012997,2]
[325201714,1714578638744,-266.67469551,0.00012997,2]
[325201715,1714578638754,-155.16802401,0.00012997,2]
[325201716,1714578638764,-325.81505107,0.00012997,2]
[325201717,1714578638774,-408.57453561,0.00012997,2]
[325201718,1714578638785,-339.20676129,0.00012997,2]
[325201719,1714578638795,-1064.24123917,0.00012997,2]
[325201720,1714578638804,-416.01691734,0.00012997,2]
[325201721,1714578638814,-155.0,0.00012997,2]
[325201722,1714578638823,-2593.20880752,0.00012997,2]
[325201723,1714578638833,-155.0,0.00012998,2]
[325201724,1714578638843,-445.08797457,0.00012998,2]
[325201725,1714578638852,-155.09566948,0.00012998,2]
[325201726,1714578638861,-2124.74218484,0.00012998,2]
[325201727,1714578638871,-500.0,0.00012998,2]
[325201728,1714578638880,-1000.0,0.00012998,2]
[325201729,1714578638890,-140221.87734843,0.00012999,2]
[325201731,1714578639377,-13223.93,0.00012999,2]
[325201732,1714578639405,-609.05429937,0.00012999,2]
[325201733,1714578639429,-67299.03055656,0.00012999,2]
[325201768,1714578640476,-44074.74,0.00012999,2]
[325201769,1714578640488,-1415.55102347,0.00012999,2]
[325201770,1714578640581,-446.39093104,0.00012999,2]
[325201771,1714578640593,-2652.18172497,0.00012999,2]
[325201772,1714578640604,-760.01039041,0.00012999,2]
[325201773,1714578640615,-738.70204546,0.00012999,2]
[325201774,1714578640641,-1048.0,0.00012999,2]
[325201775,1714578640777,-347.37633144,0.00012999,2]
[325201776,1714578640789,-668.16681472,0.00012999,2]
[325201815,1714578643663,-155.35175922,0.00012998,2]
[325201816,1714578643673,-4091.96062446,0.00012999,2]
[325201817,1714578643718,-800.96828781,0.00012999,2]
[325201825,1714578644638,-632926.3747933,0.00012999,2]
[325201826,1714578644651,-108370.42834926,0.00012999,2]
[325201832,1714578646374,-16367.58887135,0.00012999,2]
[325201834,1714578646395,-23527.44562485,0.00012999,2]
[325201837,1714578646494,-1437.32,0.00012999,2]
[325201838,1714578646506,-13220.2,0.00012999,2]
[325201839,1714578646518,-698.48203067,0.00012999,2]
[325201840,1714578646608,-3134.72475874,0.00012999,2]
[325201862,1714578763479,-348.88,0.00027,120]
[325201863,1714578850291,150.0,0.00010993,2]
[325201864,1714578866865,400.0,0.00011,2]
[325201869,1714578927904,298.903122,0.00011,2]
[325201872,1714578943982,258.32774581,0.00011,2]
[325201976,1714579211705,1250.0,0.00011,2]
[325202707,1714579791153,-427.51019987,0.00011694,2]
[325202719,1714579831749,-167.98872195,0.00011697,2]
[325202720,1714579831759,-200.0,0.00011976,2]
[325202721,1714579831768,-250.0,0.00011976,2]
[325202722,1714579831778,-854.50571578,0.00012,2]
[325202723,1714579831788,-5000.0,0.00012,2]
[325202724,1714579831797,-193.3,0.00012052,2]
[325202725,1714579831806,-200.0,0.00012163,2]
[325202726,1714579831816,-200.0,0.00012215,2]
[325202727,1714579831825,-800.0,0.00012229,2]
[325202728,1714579831834,-881.27,0.00012255,2]
[325202729,1714579831843,-29.09241905,0.00012255,2]
[325202730,1714579831854,-150.15758095,0.00012255,2]
[325202731,1714579831864,-200.0,0.00012308,2]
[325202732,1714579831873,-167.29,0.00012457,2]
[325202733,1714579831882,-150.0,0.00012701,2]
[325202734,1714579831891,-150.0,0.00012704,2]
[325202735,1714579831900,-200.0,0.00012746,2]
[325202736,1714579831909,-167.29,0.00012782,2]
[325202737,1714579831918,-425.7426,0.0001289,2]
[325202738,1714579831927,-407.24438258,0.00012898,2]
[325202739,1714579831935,-4367.1031,0.00012899,2]
[325202740,1714579831950,-445.2831,0.00012899,2]
[325202742,1714579831959,-197.5464,0.00012899,2]
[325202744,1714579831968,-305.94403454,0.00012899,2]
[325202746,1714579831976,-201.31655263,0.000129,2]
[325202748,1714579831985,-167.02299764,0.000129,2]
[325202750,1714579831994,-21121.74075266,0.000129,2]
[325202752,1714579832006,-1241.72374471,0.000129,2]
[325202755,1714579832017,-421.47682057,0.000129,2]
[325202757,1714579832029,-11101.57067367,0.000129,2]
[325202759,1714579832040,-791.24822385,0.000129,2]
[325202762,1714579832055,-36328.67459737,0.000129,2]
[325202764,1714579832064,-206.71908165,0.000129,2]
[325202766,1714579832073,-427.34261633,0.00012982,2]
[325202768,1714579832082,-287.08,0.00012988,2]
[325202770,1714579832091,-1500.0,0.00012989,2]
[325202771,1714579832101,-127134.14563324,0.0001299,2]
[325202774,1714579832112,-994.06607205,0.0001299,2]
[325202776,1714579832123,-746.56164777,0.0001299,2]
[325202778,1714579832134,-830.08689098,0.0001299,2]
[325202780,1714579832145,-621.77146932,0.0001299,2]
[325202782,1714579832157,-883.97785601,0.0001299,2]
[325202785,1714579832168,-450.25,0.0001299,2]
[325202787,1714579832184,-535.511,0.0001299,2]
[325202917,1714579837689,-318.54331447,0.0001299,2]
[325202919,1714579837703,-529.82133345,0.0001299,2]
[325202922,1714579837747,-9747.42693861,0.0001299,2]
[325202923,1714579837759,-5959.05002,0.0001299,2]
[325202924,1714579837771,-12868.12665615,0.0001299,2]
[325202925,1714579837782,-5101.000001,0.0001299,2]
[325202926,1714579837794,-1309.14461714,0.0001299,2]
[325202927,1714579837806,-10350.0,0.0001299,2]
[325202928,1714579837817,-7716.1,0.0001299,2]
[325202929,1714579837828,-3873.9,0.0001299,2]
[325202930,1714579837839,-3146.71372053,0.0001299,2]
[325202931,1714579837855,-2123.46875368,0.0001299,2]
[325202932,1714579837866,-14952.47466845,0.0001299,2]
[325202933,1714579837887,-1391.18950319,0.0001299,2]
[325202934,1714579837902,-38416.66990396,0.0001299,2]
[325202935,1714579837917,-621.95932919,0.00012997,2]
[325202936,1714579837934,-155.09566948,0.00012997,2]
[325202937,1714579837950,-339.20676129,0.00012997,2]
[325202938,1714579837964,-155.0,0.00012997,2]
[325202939,1714579837978,-445.08797457,0.00012997,2]
[325202940,1714579837993,-2593.20880752,0.00012997,2]
[325202941,1714579838010,-1064.24123917,0.00012997,2]
[325202942,1714579838026,-416.01691734,0.00012997,2]
[325202943,1714579838041,-408.57453561,0.00012997,2]
[325202944,1714579838055,-155.0,0.00012997,2]
[325202947,1714579838071,-325.81505107,0.00012997,2]
[325202949,1714579838085,-155.16802401,0.00012997,2]
[325202951,1714579838097,-266.67469551,0.00012997,2]
[325202954,1714579838110,-155.0,0.00012997,2]
[325202955,1714579838125,-157.34694959,0.00012997,2]
[325202958,1714579838141,-781.35828446,0.00012997,2]
[325202960,1714579838157,-255.50946214,0.00012997,2]
[325202963,1714579838172,-236.8238938,0.00012997,2]
[325202965,1714579838183,-302.83054698,0.00012997,2]
[325202968,1714579838197,-155.39491573,0.00012997,2]
[325202970,1714579838211,-3634.40571362,0.00012997,2]
[325202973,1714579838226,-241.48315687,0.00012997,2]
[325202975,1714579838240,-192.81318554,0.00012997,2]
[325202977,1714579838256,-160.91122999,0.00012997,2]
[325202979,1714579838270,-363.35615839,0.00012997,2]
[325202982,1714579838282,-213.89673121,0.00012997,2]
[325202984,1714579838294,-155.16353772,0.00012997,2]
[325202987,1714579838311,-185.94479018,0.00012997,2]
[325202989,1714579838324,-2556.12174505,0.00012997,2]
[325202991,1714579838338,-155.49081521,0.00012997,2]
[325202994,1714579838351,-2124.74218484,0.00012998,2]
[325202996,1714579838364,-1000.0,0.00012998,2]
[325202999,1714579838378,-98971.63555502,0.00012999,2]
[325203001,1714579838395,-48868.43935615,0.00012999,2]
[325203007,1714579838434,-3062.67819403,0.00012999,2]
[325203035,1714579839763,-2218.35281544,0.00012999,2]
[325203036,1714579839780,-22261.34880096,0.00012999,2]
[325203037,1714579839825,-1028.443,0.00012999,2]
[325203038,1714579839840,-641.58744669,0.00012999,2]
[325203039,1714579839855,-642.18873986,0.00012999,2]
[325203040,1714579839871,-1998.5,0.00012999,2]
[325203041,1714579839899,-1076.05428458,0.00012999,2]
[325203042,1714579839915,-1927.64577303,0.00012999,2]
[325203043,1714579839930,-2790.50268462,0.00012999,2]
[325203044,1714579839964,-1138.0,0.00012999,2]
[325203045,1714579839979,-284.96379,0.00012999,2]
[325203046,1714579839995,-901.46094364,0.00012999,2]
[325203047,1714579840011,-773.95903373,0.00012999,2]
[325203048,1714579840027,-738.7893376,0.00012999,2]
[325203049,1714579840063,-529.1545287,0.00012999,2]
[325203050,1714579840079,-7368.96517219,0.00012999,2]
[325203051,1714579840101,-1437.40410799,0.00012999,2]
[325203052,1714579840117,-1785.71493991,0.00012999,2]
[325203072,1714579842797,-576.03685335,0.000129,2]
[325203073,1714579842809,-320.57177434,0.000129,2]
[325203078,1714579842916,-527.52399127,0.000129,2]
[325203079,1714579842928,-87877.91419149,0.00012999,2]
[325203080,1714579842937,-207.44215565,0.00012999,2]
[325203081,1714579842949,-5852.08008115,0.00012999,2]
[325203082,1714579842958,-1027.79402,0.00012999,2]
[325203083,1714579842968,-2000.0,0.00012999,2]
[325203084,1714579842978,-1218.0,0.00013,2]
[325203085,1714579842987,-9913.77757432,0.00013,2]
[325203093,1714579843809,-569915.00000019,0.00013,2]
[325203098,1714579845725,-3819.14243796,0.00012999,2]
[325203099,1714579845734,-45007.35775905,0.00013,2]
[325203100,1714579845746,-754.68304638,0.00013,2]
[325203101,1714579845783,-907.21343641,0.00013,2]
[325203102,1714579845843,-786.21007,0.00013,2]
[325203108,1714580163160,-357.45923016,0.0002,30]
[325203109,1714580163197,-24577.98455232,0.0002511,30]
[325203110,1714580163224,-155.0,0.0002565,30]
[325203111,1714580163247,-0.00161943,0.00027,120]
[325203112,1714580163277,-2000.0,0.00029,30]
[325203113,1714580163299,-2000.0,0.00029,30]
[325203114,1714580163324,-2000.0,0.00029,30]
[325203115,1714580163359,-1385.52959951,0.0003,60]
[325203116,1714580163384,-36607.07590984,0.0003,60]
[325203117,1714580163407,-1700.0,0.0003,30]
[325203118,1714580163429,-3000.0,0.0003,120]
[325203119,1714580163457,-100000.0,0.000309,30]
[325203120,1714580286361,150.0,0.00010993,2]
[325203121,1714580387858,627.25,0.0001159,2]
[325203122,1714580433521,3532.08,0.00011588,2]
[325203123,1714580437074,-155.0,0.00012051,2]
[325203124,1714580437100,-369.39078621,0.00012052,2]
[325203125,1714580437799,-155.0,0.00012052,2]
[325203126,1714580440659,255.63107012,0.0001205,2]
[325203127,1714580513151,113.75971609,0.00012052,2]
[325203128,1714580513176,508.30842173,0.00012052,2]
[325203129,1714580522798,16.08236448,0.0001205,2]
[325203130,1714580522822,524.39078621,0.0001205,2]
[325203131,1714580522845,524.39078621,0.0001205,2]
[325203132,1714580522869,524.39078621,0.0001205,2]
[325203133,1714580522893,524.39078621,0.0001205,2]
[325203134,1714580522916,524.39078621,0.0001205,2]
[325203135,1714580527680,200.0,0.00011616,2]
[325203136,1714580574555,155.0,0.00011616,2]
[325203137,1714580576608,155.0,0.00011616,2]
[325203138,1714580577906,257.58973417,0.00011616,2]
[325203139,1714580579688,559.9186672,0.00011616,2]
[325203140,1714580580503,1472.72036714,0.00011616,2]
[325203141,1714580581521,399.55332141,0.00011616,2]
[325203142,1714580583435,344.98288347,0.00011616,2]
[325203143,1714580583932,1655.23502661,0.00011616,2]
[325203144,1714580583954,18035.46590773,0.00011616,2]
[325203145,1714580584148,1375.25304614,0.00011616,2]
[325203146,1714580586907,20186.37843735,0.00011616,2]
[325203147,1714580592552,180.21241663,0.00011616,2]
[325203148,1714580595987,257.58973417,0.00011616,2]
[325203149,1714580597104,155.0,0.00011616,2]
[325203150,1714580597467,357.20190268,0.00011616,2]
[325203151,1714580597693,562.56971946,0.00011616,2]
[325203152,1714580598231,1375.25304614,0.00011616,2]
[325203153,1714580599531,399.55332141,0.00011616,2]
[325203154,1714580599940,19690.70093434,0.00011616,2]
[325203155,1714580602502,1472.72036714,0.00011616,2]
[325203156,1714580602898,20186.37843735,0.00011616,2]
[325203157,1714580614614,155.0,0.00011616,2]
[325203158,1714580616193,65.7048,0.00011616,2]
[325203159,1714580616216,1309.54824614,0.00011616,2]
[325203160,1714580618174,1008.01721166,0.00011616,2]
[325203162,1714580619895,257.58973417,0.00011616,2]
[325203163,1714580621521,398.7125457,0.00011616,2]
[325203164,1714580621670,250.0,0.00011511,2]
[325203165,1714580622507,565.34834991,0.00011616,2]
[325203166,1714580626904,16152.05278222,0.00011616,2]
[325203167,1714580628637,164.65,0.00011642,2]
[325203168,1714580628685,164.65,0.00011656,2]
[325203169,1714580628930,164.65,0.00011671,2]
[325203170,1714580628970,164.65,0.00011685,2]
[325203171,1714580634192,1372.66338702,0.00011616,2]
[325203172,1714580634542,150.0,0.00011642,2]
[325203173,1714580634613,155.0,0.00011616,2]
[325203174,1714580635895,257.58973417,0.00011616,2]
[325203175,1714580646810,150.0,0.00010993,2]
[325203176,1714580651534,378.0976665,0.00010454,2]
[325203177,1714580653905,257.58973417,0.00011616,2]
[325203178,1714580654631,155.0,0.00011616,2]
[325203179,1714580670621,277.02218733,0.00011616,2]
[325203180,1714580673902,257.58973417,0.00011616,2]